Cogmind - Beta 10.2 @@@ ROGUE MODE // 2022.03.15 @ 02:12:25 Player: Yanche Result: Destroyed by G-34 Mercenary with Small Laser Performance ------------- Evolutions (1) 500 Regions Visited (2) 400 Robots Destroyed (28) 140 Value Destroyed (542) 542 Prototype IDs (3) 60 Alien Tech Used (0) 0 Bonus (12) 12 TOTAL SCORE: 1654 Bonus ------- High Alert Combat Kills 12 Cogmind --------- Core Integrity 0/400 Matter 274/300 Energy 125/125 System Corruption 0% Temperature Cool (57) Movement Rolling (110) Ox1 Location -9/Materials Parts ------- > --- POWER (1) -------- Light Ion Engine > --- PROPULSION (4) --- Compact Wheel > --- UTILITY (2) ------ Large Storage Unit Utility Shielding > --- WEAPON (2) ------- Autogun Mining Laser > --- INVENTORY (10) --- Light Ion Engine Heat Sink Large Storage Unit Propulsion Shielding Light Assault Rifle Heavy Assault Rifle Peak State ------------ > --- POWER ------------ Ion Engine > --- PROPULSION ------- Wheel Wheel Compact Wheel Armored Wheel > --- UTILITY ---------- Large Storage Unit Utility Shielding > --- WEAPON ----------- Medium Laser Assault Rifle > --- INVENTORY -------- Light Ion Engine Wheel Heat Sink Large Storage Unit Propulsion Shielding Light Assault Rifle Light Assault Rifle Autogun Mining Laser [Rating: 11] Favorites ----------- Power Ion Engine Engine Ion Engine Propulsion Compact Wheel Wheel Compact Wheel Utility Large Storage Unit Storage Large Storage Unit Protection Utility Shielding Weapon Assault Rifle Energy Gun Particle Gun Ballistic Gun Assault Rifle Special Weapon Mining Laser Build | -11 -10 -9 ------- Run | Scr Mat Mat Slots Evolved 2 | . . 2 Power . | . . . Propulsion 2 | . . 2 Utility . | . . . Weapon . | . . . Parts Attached 32 | 4 8 20 Power 6 | 1 1 4 Engine 6 | 1 1 4 Core . | . . . Reactor . | . . . Propulsion 11 | 2 1 8 Treads . | . . . Leg . | . . . Wheel 11 | 2 1 8 Hover . | . . . Flight . | . . . Utility 5 | 1 2 2 Device . | . . . Storage 4 | 1 1 2 Processor . | . . . Hackware . | . . . Protection 1 | . 1 . Artifact . | . . . Weapon 10 | . 4 6 Energy Gun 3 | . 2 1 Energy Cannon . | . . . Ballistic Gun 6 | . 2 4 Ballistic Cannon . | . . . Launcher . | . . . Special Weapon 1 | . . 1 Impact Weapon . | . . . Slashing Weapon . | . . . Piercing Weapon . | . . . Special Melee Weapon . | . . . Unidentified Prototypes . | . . . Parts Lost 16 | . 3 13 Power 2 | . . 2 Propulsion 6 | . 1 5 Utility . | . . . Weapon 8 | . 2 6 Highest Loss Streak 9 | . 2 9 Average Slot Usage (%) 88 | . 97 76 Engine 11 | . 14 8 Wheel 27 | . 26 27 Storage 12 | . 14 11 Protection 12 | . 12 11 Energy Gun 7 | . 10 4 Ballistic Gun 14 | . 17 11 Naked Turns . | . . . Heaviest Build 27 | 9 27 26 Greatest Support 52 | 26 32 52 Greatest Overweight (x) 6 | . 1 6 Average Overweight (x) . | . . . Largest Inventory Capacity 12 | 6 12 10 Average Capacity 9 | 5 9 10 Most Carried 10 | 4 6 10 Average Carried 5 | 2 4 7 Final Capacity 10 | 6 10 10 Final Carried 6 | 4 6 6 Class Distribution -------------------- 100% | Mutant Dominant Class ---------------- Mutant | -10/Materials Mutant | -9/Materials Resources | -11 -10 -9 ----------- Run | Scr Mat Mat Matter Collected 785 | 212 216 357 Remotely . | . . . Salvage Created 788 | . 338 450 Parts 64 | . 20 44 Haulers Intercepted . | . . . Recyclers Shooed 4 | . 3 1 Parts Field Recycled . | . . . Retrieved Matter . | . . . Parts Self-Destructed . | . . . Prevented . | . . . Kills | -11 -10 -9 ------- Run | Scr Mat Mat Combat Hostiles Destroyed 25 | . 7 18 Guns 24 | . 7 17 Cannons 1 | . . 1 Classes Destroyed 5 | . 3 2 Builder 1 | . . 1 Recycler 2 | . 2 . Swarmer 15 | . 3 12 Grunt 8 | . 4 4 Sentry 2 | . . 2 Best Kill Streak 5 | . 3 5 Combat Bots Only 5 | . 3 5 Max Kills in Single Turn 2 | . 2 1 Gunslinging 1 | . 1 . Exploded . | . . . Melee . | . . . Uniques/NPCs Destroyed . | . . . Combat | -11 -10 -9 -------- Run | Scr Mat Mat Damage Taken 1906 | . 485 1421 Core 555 | . 147 408 Absorbed by Shields . | . . . Core Remaining (%) 70 | 100 41 . Volleys Fired 115 | . 38 77 Largest 2 | . 2 2 Hottest 123 | . 85 123 Shots Fired 189 | . 75 114 Gun 186 | . 75 111 Cannon . | . . . Launcher . | . . . Special 3 | . . 3 Kinetic 138 | . 49 89 Thermal 51 | . 26 25 Explosive . | . . . Electromagnetic . | . . . Robot Hit Streak 12 | . 12 10 Robot Miss Streak 6 | . 4 6 Penetration Max . | . . . Secondary Targets 2 | . 2 . Max Gunslinging Chain 1 | . 1 . Shots Hit Robots 119 | . 51 68 Core Hits 44 | . 18 26 Critical Hits 1 | . . 1 Critical Kills . | . . . Critical Parts Destroyed 1 | . . 1 Melee Attacks . | . . . Impact . | . . . Slashing . | . . . Piercing . | . . . Sneak Attacks . | . . . Combat Hostiles . | . . . Follow-up Attacks . | . . . Damage Inflicted 1552 | . 628 924 Guns 1504 | . 628 876 Cannons . | . . . Explosions . | . . . Melee . | . . . Ramming . | . . . Kinetic 1067 | . 385 682 Thermal 485 | . 243 242 Explosive . | . . . Electromagnetic . | . . . Impact . | . . . Slashing . | . . . Piercing . | . . . Highest Corruption . | . . . Average Corruption . | . . . Corruption Purged . | . . . Overload Shots . | . . . Overflow Damage . | . . . Projectiles . | . . . Explosions . | . . . Melee . | . . . Knockbacks . | . . . Impact . | . . . Kinetic . | . . . Secondary . | . . . Self-Inflicted Damage . | . . . Shots . | . . . Rammed . | . . . Targets Rammed . | . . . Kicked . | . . . Crushed . | . . . Highest Temperature 186 | . 186 74 Average Temperature 60 | . 77 21 Received Heat Transfer 528 | . 237 291 Siege Activations . | . . . Robots Corrupted . | . . . Combat Hostiles . | . . . Parts Fried . | . . . Impact Corruptions . | . . . Robots Melted . | . . . Combat Hostiles . | . . . Parts Melted 4 | . 1 3 Heat Transferred 1238 | . 582 656 Parts Sabotaged . | . . . Parts Stolen . | . . . Parts Stripped . | . . . Power Chain Reactions . | . . . Missiles Intercepted . | . . . Alert | -11 -10 -9 ------- Run | Scr Mat Mat Peak Influence 427 | . 199 427 Initial 12 | . . 12 Average 145 | . 82 247 Maximum Alert Level 2 | . . 2 Low Security (%) 75 | 100 100 40 Level 1 16 | . . 39 Level 2 8 | . . 20 Level 3 . | . . . Level 4 . | . . . Level 5 . | . . . High Security . | . . . Max Security . | . . . Squads Dispatched 1 | . 1 . Investigation . | . . . Extermination . | . . . Reinforcement 1 | . 1 . Assault . | . . . Garrison . | . . . Intercept . | . . . Construction Impeded . | . . . Haulers Reinforced . | . . . Stealth | -11 -10 -9 --------- Run | Scr Mat Mat Distress Signals 1 | . . 1 Communications Jammed . | . . . Distress Signals . | . . . Times Spotted 40 | . 15 25 Peak Tracking Total 9 | . 4 9 Tactical Retreats 6 | . 2 4 Traps | -11 -10 -9 ------- Run | Scr Mat Mat Traps Triggered . | . . . Indirectly . | . . . Trap Hack Attempts . | . . . Triggered . | . . . Disarmed . | . . . Reprogrammed . | . . . Reused . | . . . Traps Extracted . | . . . Installed . | . . . Triggered . | . . . Machines | -11 -10 -9 ---------- Run | Scr Mat Mat Machines Disabled . | . . . Max in Single Turn . | . . . Machines Sabotaged . | . . . Garrisons Compromised . | . . . Overloaded Fab Kills . | . . . Fab Network Shutdowns . | . . . Hacking | -11 -10 -9 --------- Run | Scr Mat Mat Machines Accessed 1 | . 1 . Terminals 1 | . 1 . Fabricators . | . . . Repair Stations . | . . . Recycling Units . | . . . Scanalyzers . | . . . Garrison Access . | . . . Total Hacks 1 | . 1 . Successful 1 | . 1 . Failed . | . . . Catastrophic . | . . . Database Lockouts . | . . . Manual . | . . . Terminals 1 | . 1 . Fabricators . | . . . Repair Stations . | . . . Recycling Units . | . . . Scanalyzers . | . . . Garrison Access . | . . . Terminal Hacks 1 | . 1 . Prototype ID Bank 1 | . 1 . Fabricator Hacks . | . . . Repair Station Hacks . | . . . Recycling Unit Hacks . | . . . Scanalyzer . | . . . Garrison Access Hacks . | . . . Unauthorized Hacks . | . . . Terminals . | . . . Fabricators . | . . . Repair Stations . | . . . Recycling Units . | . . . Scanalyzers . | . . . Garrison Access . | . . . Data Cores Recovered . | . . . Used . | . . . Hacking Detections 1 | . 1 . Full Trace Events . | . . . Feedback Events . | . . . Feedback Blocked . | . . . Robot Schematics Acquired . | . . . Robots Built . | . . . Matter . | . . . Time . | . . . Total Robot Build Rating . | . . . Part Schematics Acquired . | . . . Parts Built . | . . . Matter . | . . . Time . | . . . Total Part Build Rating . | . . . Parts Repaired . | . . . Time . | . . . Parts Recycled . | . . . Recycled Matter . | . . . Retrieved Matter . | . . . Retrieved Components . | . . . Parts Scanalyzed . | . . . Part Schematics Acquired . | . . . Parts Damaged . | . . . Bothacking | -11 -10 -9 ------------ Run | Scr Mat Mat Used RIF Installer . | . . . Robots Hacked . | . . . Non-combat . | . . . Combat . | . . . Robot Hacks Applied . | . . . Relay Couplers Released . | . . . Robots Rewired . | . . . Allies Hacked . | . . . Hacks Repelled . | . . . Allies | -11 -10 -9 -------- Run | Scr Mat Mat Total Allies . | . . . Largest Group . | . . . Highest-Rated Group . | . . . Highest-Rated Ally . | . . . Total Orders . | . . . Ally Attacks . | . . . Total Damage . | . . . Kills . | . . . Allies Corrupted . | . . . Allies Melted . | . . . Intel | -11 -10 -9 ------- Run | Scr Mat Mat Robot Analysis Total . | . . . Derelict Logs Recovered . | . . . Drone Launches . | . . . Drone Recoveries . | . . . Exploration | -11 -10 -9 ------------- Run | Scr Mat Mat Turns Passed 890 | 41 486 363 Spaces Moved 483 | 36 309 138 Core 3 | 2 . 1 Treads . | . . . Legs . | . . . Wheels 480 | 34 309 137 Hover . | . . . Flight . | . . . Fastest Speed 50 | 50 90 82 Average Speed 96 | 86 98 96 Slowest Speed 350 | 90 110 350 Overloaded Moves . | . . . Propulsion Burnouts . | . . . Robots Hopped . | . . . Cave-ins Triggered . | . . . Exploration Rate (%) 25 | 3 62 10 Regions Visited 2 Branch Regions . Pre-discovered Areas . | . . . Known Exits Taken . | . . . Unknown Exits Taken 2 | 1 1 . Scrap Searched . | . . . Spaces Dug . | . . . Terrain Destroyed . | . . . Melee . | . . . Projectile . | . . . AOE . | . . . Terrain Rammed . | . . . Walls Destroyed . | . . . Machines Disabled . | . . . Actions | -11 -10 -9 --------- Run | Scr Mat Mat Total 712 | 43 417 252 Wait 62 | . 55 7 Move 481 | 35 308 138 Hop . | . . . Pick Up 17 | 4 6 7 Fast Attach 11 | 4 4 3 Attach 12 | . 3 9 Detach . | . . . Swap 9 | . 1 8 Drop 5 | . 2 3 Fire 115 | . 38 77 Melee . | . . . Ram . | . . . Kick . | . . . Crush . | . . . Escape Stasis . | . . . Rewire . | . . . Trap . | . . . Miscellaneous . | . . . Route ------- -11/Scrapyard -10/Materials (discovered 3 exits: [*Mat] / [*Min x2]) -9/Materials History --------- Turn | Location | Event 25 | -11/Scrapyard | Discovered new exit (range 16) 42 | -11/Scrapyard | Entered Materials 230 | -10/Materials | Discovered new exit (range 9) 253 | -10/Materials | Discovered new exit (range 10) 302 | -10/Materials | Build established: Mutant 397 | -10/Materials | Core integrity fell below 50% 523 | -10/Materials | Discovered new exit (range 4) 528 | -10/Materials | Entered another Materials area 528 | -9/Materials | Evolved 2 slots: Propulsion x2 699 | -9/Materials | Lost 3 parts (1p1n1w) 796 | -9/Materials | Core integrity fell below 50% 818 | -9/Materials | Core integrity fell below 20% 842 | -9/Materials | Lost 9 parts (1p4n4w) 891 | -9/Materials | Destroyed by G-34 Mercenary with Small Laser Last Messages --------------- K-01 Serf cleans the Terminal. Acquired 20 matter. K-01 Serf collects debris. Acquired 55 matter. Acquired Hvy. Assault Rifle. K-01 Serf cleans the Terminal. Dropped Lgt. Ion Engine. Acquired Lgt. Ion Engine. K-01 Serf collects debris. Acquired 53 matter. K-01 Serf cleans the Terminal. Acquired Lgt. Assault Rifle. R-06 Scavenger collects Lgt. Assault Rifle. K-01 Serf cleans the Terminal. R-06 Scavenger collects Flight Unit. Acquired 13 matter. R-06 Scavenger collects Lgt. Ion Engine. K-01 Serf collects debris. R-06 Scavenger collects Lgt. Treads. K-01 Serf collects debris. Map ----- +----------------------------------------------------+ | ??????????????????????????????????????? | | ??????????????????????????????????????? | | ??????????????????????????????????????? | | ??????????????????????????????????????? | | ?????????????????????#####????????????? | | ?????????????????????# ##########???? | | ?????????????????????# # #???? | | ?????????????????????# #""" #???? | | ?????????????????????# #""" #???? | | ?????????????????????# #""" #???? | | ?????????????????????# + #???? | | ?????????????????????# #""" #???? | | ?????????????????????# #""" = #???? | | ?????????????????????# #""" == #???? | | ?????????????????????# # =% #???? | | ?????????????????????# ####+#####???? | | ?????????????????????# ####%#???????? | | ???????????????????### % #???????? | | ???????????????????#"" #?####### | | ???????????????????#"T #?# # | | ???????????????????#"" ### """ # | | ???????????????????###= # """ # | | ?????????????????????# =#*""" # | | ?????????????????????# * + # | | ?????????????????????# a ==#*= # | | ?????????????????????# @ g % # # | | ?????????????????????# ####+######### | | ?????????????????????# #? [=* ??????? | | ??????????????######## # """ ????? | | ??????????????+ # """ "??? | | ??????????????##### # """ Y"#? | | ??????????????????# # ""#? | | ??????????????????# # ?? | | ??????????????????#####/#######+#####?? | | ???????????????????# #?????????? | | ???????????????????# "" #?????????? | | ???????????????????# "" #?????????? | | ???????????????????# T"=#?????????? | | ???????????????????# ""=#?????????? | | ???????????????????# ""*#?????????? | | ???????????????????# = = *#?????????? | | ???????????????????# =*! =% ##????????? | | ???????????????????# %[[!== #????????? | | ???????????????????###########????????? | | ??????????????????????????????????????? | | ??????????????????????????????????????? | | ??????????????????????????????????????? | | ??????????????????????????????????????? | | ??????????????????????????????????????? | | ??????????????????????????????????????? | +----------------------------------------------------+ Best States ------------- Heat Dissipation 28 Energy Generation 10 Energy Capacity 250 Matter Stores 300 Matter Capacity 300 Sight Range 16 Terrain Scan Density 10 Utility Shielding 33 Evasion (%) 44 Item Schematics ----------------- None Robot Schematics ------------------ None Fabricated ------------ Nothing Alien Tech Used ----------------- None Achievements -------------- None Challenges ------------ None Game ------ Seed GatlingNeutrinoDerivative Manual? 0 Play Time 00:12:42 Cumulative 62.6 hours Start 2022.03.15 @ 02:00:23 End 2022.03.15 @ 02:12:25 Sessions 1 Manual Loads 0 Difficulty Rogue Special Mode None Game No. 55 Rogue 45 Adventurer 0 Explorer 10 Win Type - Total 0 Types 0/0/0/0/0/0/0/0/0 Lore% 46 Gallery% 43 Achievement% 30 Wizard Run 0 Options --------- ASCII 0 Keyboard 0 Movement Numpad Keybinds 0 Fullscreen 1 Font 18/SmallcapsGlow Map View 76x50 Tactical HUD 0 Map Filters NONE Filters NONE Steam 1 RUN: 6fcab5dc-9f97-47c3-94c1-31ebd83f2271